{"text_format":"2","workbook":"xlsx","n_sheets":6,"sheets":["Záradék","Összesítő","Víztelenítés","Költségtérítés tételek","Irtás, föld- és sziklamunka","Közmű csatornaépítés"],"not_rendered":{"charts":0,"images":0,"macros":0,"external_links":0,"defined_names":0,"comments":0,"pivot_tables":0},"unopened":[],"bounds":{"document_bytes":16777216,"sheet_cells":100000,"run_cost":"one","rows_first":2000,"rows_last":500,"rows_between":2000,"halvings":0,"cell_chars":16384,"cell_head_chars":4096},"cells_cut":0,"cells_raw":0,"read":"whole","date_system":"1900"}

{"sheet":"Záradék","index":0,"n_rows":29,"n_cols":4,"rows_kept":29,"cut":false,"hidden":false,"merged":[[28,1,28,2],[3,0,3,3],[18,0,18,3],[24,2,24,3],[23,2,23,3],[0,0,0,3],[1,0,1,3],[2,0,2,3],[21,2,21,3],[22,2,22,3],[8,2,8,3],[9,2,9,3],[10,2,10,3],[11,2,11,3],[12,2,12,3]]}
["SZEGEDI TUDOMÁNYEGYETEM"]
[]
[]
[]
[]
["                                       ",null,"                                       "]
[null,null,"Kelt:"]
[]
["Szegedi Tudományegyetem                ",null,"Készítette:"]
["Műszaki Igazgatóság                    ",null,"Cégnév"]
["Műszaki Üzemeltetési Részleg         ",null,"Székhely"]
["6725 Szeged, Tisza Lajos krt. 107.     ",null,"Kapcsolattartó"]
["                                       ",null,"Elérhetőség"]
["                                       ",null,"                                       "]
["A munka tárgya:                       ",null,"                                       "]
["Gazdásági Hivatal udvarán     14 db szennyvíz tisztítóakna rekonstrukciója és szennyvízvezeték bélelése"]
[]
[]
["Költségvetés főösszesítő"]
["Megnevezés",null,"Anyagköltség","Díjköltség"]
["1. Építmény közvetlen költségei",null,{"$f":"ROUND(SUM(Összesítő!B2:B5),0)","v":0},{"$f":"ROUND(SUM(Összesítő!C2:C5),0)","v":0}]
["4.1 ÁFA vetítési alap",null,{"$f":"SUM(C21:D21)","v":0}]
["4.2 Áfa",0.27,{"$f":"ROUND(C22*B23,0)","v":0}]
["4.3 Tartalékkerettel növelt ár",0.05,{"$f":"SUM(C22*1.05)","v":0}]
["5.  A munka ára",null,{"$f":"SUM(C24*1.27)","v":0}]
[]
[]
[]
[null,"Aláírás"]

{"sheet":"Összesítő","index":1,"n_rows":6,"n_cols":3,"rows_kept":6,"cut":false,"hidden":false,"merged":[]}
["Munkanem megnevezése","Anyag összege","Díj összege"]
["Víztelenítés",{"$f":"Víztelenítés!H4","v":0},{"$f":"Víztelenítés!I4","v":0}]
["Költségtérítés tételek",{"$f":"'Költségtérítés tételek'!H5","v":0},{"$f":"'Költségtérítés tételek'!I5","v":0}]
["Irtás, föld- és sziklamunka",{"$f":"'Irtás, föld- és sziklamunka'!H6","v":0},{"$f":"'Irtás, föld- és sziklamunka'!I6","v":0}]
["Közmű csatornaépítés",{"$f":"'Közmű csatornaépítés'!H12","v":0},{"$f":"'Közmű csatornaépítés'!I12","v":0}]
["Összesen:",{"$f":"ROUND(SUM(B2:B5),0)","v":0},{"$f":"ROUND(SUM(C2:C5), 0)","v":0}]

{"sheet":"Víztelenítés","index":2,"n_rows":4,"n_cols":9,"rows_kept":4,"cut":false,"hidden":false,"merged":[]}
["Ssz.","Tételszám","Tétel szövege","Menny.","Egység","Anyag egységár","Díj egységre","Anyag összesen","Díj összesen"]
[1,"14-001-1.2.1","Kézi víztelenítés szivattyúval 1\"-os szivattyúval Munkavégzés ideje alatt a használati szennyvíz átemelése.",20,"m3",null,null,{"$f":"ROUND(D2*F2, 0)","v":0},{"$f":"ROUND(D2*G2, 0)","v":0}]
[]
[null,null,"Munkanem összesen:",{"$nulls":4},{"$f":"ROUND(SUM(H2:H3),0)","v":0},{"$f":"ROUND(SUM(I2:I3),0)","v":0}]

{"sheet":"Költségtérítés tételek","index":3,"n_rows":5,"n_cols":9,"rows_kept":5,"cut":false,"hidden":false,"merged":[]}
["Ssz.","Tételszám","Tétel szövege","Menny.","Egység","Anyag egységár","Díj egységre","Anyag összesen","Díj összesen"]
[1,"19-014-1.1","Kamerás csatornavizsgálat ipari videokamerával. Felvétel készítése, archiválása, ügyfélnek adathordozón átadása. Kamera rendszerek munkavégzés alatti teljes időben helyszínentartásával. Csatornabélelés eszköze. Csővégek aknába csatlakozásának",36,"óra",null,null,{"$f":"ROUND(D2*F2, 0)","v":0},{"$f":"ROUND(D2*G2, 0)","v":0}]
[null,null,"pozicionálása és dokumentálása."]
[]
[null,null,"Munkanem összesen:",{"$nulls":4},{"$f":"ROUND(SUM(H2:H4),0)","v":0},{"$f":"ROUND(SUM(I2:I4),0)","v":0}]

{"sheet":"Irtás, föld- és sziklamunka","index":4,"n_rows":6,"n_cols":9,"rows_kept":6,"cut":false,"hidden":false,"merged":[]}
["Ssz.","Tételszám","Tétel szövege","Menny.","Egység","Anyag egységár","Díj egységre","Anyag összesen","Díj összesen"]
[1,"21-011-11.2","Építési törmelék konténeres elszállítása, lerakása, lerakóhelyi díjjal, 4,0 m3-es konténerbe",1,"db",null,0,{"$f":"ROUND(D2*F2, 0)","v":0},{"$f":"ROUND(D2*G2, 0)","v":0}]
[]
[2,"21-011-12","Munkahelyi depóniából építési törmelék konténerbe rakása,  kézi erővel, önálló munka esetén elszámolva, konténer szállítás nélkül",4,"m3",0,0,{"$f":"ROUND(D4*F4, 0)","v":0},{"$f":"ROUND(D4*G4, 0)","v":0}]
[]
[null,null,"Munkanem összesen:",{"$nulls":4},{"$f":"ROUND(SUM(H2:H5),0)","v":0},{"$f":"ROUND(SUM(I2:I5),0)","v":0}]

{"sheet":"Közmű csatornaépítés","index":5,"n_rows":12,"n_cols":9,"rows_kept":12,"cut":false,"hidden":false,"merged":[]}
["Ssz.","Tételszám","Tétel szövege","Menny.","Egység","Anyag egységár","Díj egységre","Anyag összesen","Díj összesen"]
[1,"53-000-3.1","Előregyártott és monolit csatornák és aknák törmelékre bontása, betonból Aknaalj bontása szükséges mértékben.",14,"db",0,0,{"$f":"ROUND(D2*F2, 0)","v":0},{"$f":"ROUND(D2*G2, 0)","v":0}]
[]
[2,"53-002-1.1.1.1.1-0910048","Feltárás nélküli csatornajavítás, csatornabélelés. 3P Shortliner technológia alkalmazásával. Willkat PL 2K Short Liner System  kétkomponensű izocianát műgyanta, üvegszálas kombinált szövet paplan (1038 g/m2) vagy műszálas textil  bélelő tömlő (2300 g/m2) ",8,"db",0,0,{"$f":"ROUND(D4*F4, 0)","v":0},{"$f":"ROUND(D4*G4, 0)","v":0}]
[null,null,"vázanyag alkalmazásával. Anyag és díjköltség az egyes bélelési poziciókra van megadva. 1 db bélelési pozicó maximum 100 cm hosszban. Íves (idom) vagy egyenes kivitelben. A felhasznált illetve létrehozott kompozit teljesítmény nyilatkozata csatolandó."]
[]
[3,"53-004-1.1-0110001","Üzemben lévő csatorna ideiglenes vízzáró lezárása, belső csőátmérő vagy vállméret: 30 cm-ig Szabványos, minősítéssel rendelkező csőelzáró ballon használatával.",28,"db",0,0,{"$f":"ROUND(D7*F7, 0)","v":0},{"$f":"ROUND(D7*G7, 0)","v":0}]
[]
[4,"53-006-1.1-0222140","Akna vagy akna jellegű műtárgy építése, monolit vasbetonból vagy betonból, akna- vagy műtárgybeton készítése C16/20 - X0v(H) kissé képlékeny kavicsbeton keverék CEM 32,5 pc. Dmax = 16 mm, m = 5,7 finomsági modulussal. Akna alj képzése. Akna test átm.:",14,"db",0,0,{"$f":"ROUND(D9*F9, 0)","v":0},{"$f":"ROUND(D9*G9, 0)","v":0}]
[null,null,"1000 mm, fedlap átm.: 600 mm. Kötési idő után felületkezelve két komponensű izocianát műgyanta és kombinált üvegszövet paplan kompozittal. Teljesítmény nyilatkozat csatolandó."]
[]
[null,null,"Munkanem összesen:",{"$nulls":4},{"$f":"ROUND(SUM(H2:H11),0)","v":0},{"$f":"ROUND(SUM(I2:I11),0)","v":0}]